[Event "*** Titled Tuesday Blitz"]
[Site "Chess.com"]
[Date "2021.04.27"]
[Round "2"]
[White "jraosam"]
[Black "Piotrek1979"]
[Result "1-0"]
[WhiteElo "1862"]
[BlackElo "2330"]
[TimeControl "180+1"]
[EndTime "10:16:48 PDT"]
[Termination "jraosam won by resignation"]

1. c4 {[%clk 0:02:59.9]} 1... e6 {[%clk 0:02:58.4]} 2. d4 {[%clk 0:02:59.5]}
2... d5 {[%clk 0:02:57]} 3. Nf3 {[%clk 0:02:58.7]} 3... Nf6 {[%clk 0:02:55.8]}
4. e3 {[%clk 0:02:55.9]} 4... b6 {[%clk 0:02:27.3]} 5. cxd5 {[%clk 0:02:50.1]}
5... exd5 {[%clk 0:02:26.2]} 6. Nbd2 {[%clk 0:02:49.3]} 6... Bd6 {[%clk
0:02:10.6]} 7. b3 {[%clk 0:02:47.7]} 7... O-O {[%clk 0:02:08.9]} 8. Bd3 {[%clk
0:02:48]} 8... Re8 {[%clk 0:02:07.5]} 9. O-O {[%clk 0:02:48.3]} 9... Bb7 {[%clk
0:01:58]} 10. Bb2 {[%clk 0:02:47.9]} 10... Nbd7 {[%clk 0:01:54.3]} 11. Rc1
{[%clk 0:02:44.8]} 11... a6 {[%clk 0:01:37.7]} 12. Qe2 {[%clk 0:02:40.4]} 12...
Ne4 {[%clk 0:01:32.7]} 13. Rfd1 {[%clk 0:02:37.8]} 13... f5 {[%clk 0:01:25.3]}
14. Nf1 {[%clk 0:02:34.4]} 14... Qe7 {[%clk 0:01:02.3]} 15. Qc2 {[%clk
0:02:30.8]} 15... g5 {[%clk 0:00:50]} 16. Ne5 {[%clk 0:02:18.8]} 16... c5 {[%clk
0:00:16.1]} 17. Nxd7 {[%clk 0:02:12.9]} 17... Qxd7 {[%clk 0:00:15]} 18. dxc5
{[%clk 0:02:13.4]} 18... bxc5 {[%clk 0:00:10]} 19. f3 {[%clk 0:02:02.4]} 19...
Qe6 {[%clk 0:00:09.8]} 20. fxe4 {[%clk 0:02:01.6]} 20... fxe4 {[%clk 0:00:10.7]}
21. Be2 {[%clk 0:01:41.2]} 21... Rf8 {[%clk 0:00:09]} 22. Qc3 {[%clk 0:01:29.9]}
22... d4 {[%clk 0:00:08.5]} 23. Bc4 {[%clk 0:01:23.3]} 23... dxc3 {[%clk
0:00:06.8]} 24. Bxe6+ {[%clk 0:01:22.7]} 24... Rf7 {[%clk 0:00:07.7]} 1-0

[Event "*** Titled Tuesday Blitz"]
[Site "Chess.com"]
[Date "2021.04.27"]
[Round "2"]
[White "pavelalexandru07"]
[Black "canary2016"]
[Result "1-0"]
[WhiteElo "2355"]
[BlackElo "1984"]
[TimeControl "180+1"]
[EndTime "10:16:49 PDT"]
[Termination "pavelalexandru07 won by checkmate"]

1. e4 {[%clk 0:02:53.5]} 1... c5 {[%clk 0:02:58.9]} 2. Nf3 {[%clk 0:02:53.5]}
2... d6 {[%clk 0:02:58.1]} 3. d4 {[%clk 0:02:53.8]} 3... cxd4 {[%clk 0:02:55.6]}
4. Nxd4 {[%clk 0:02:54.7]} 4... Nf6 {[%clk 0:02:54.8]} 5. Nc3 {[%clk 0:02:55.1]}
5... a6 {[%clk 0:02:52.7]} 6. Bg5 {[%clk 0:02:55.5]} 6... e6 {[%clk 0:02:52.4]}
7. f4 {[%clk 0:02:55.4]} 7... h6 {[%clk 0:02:51.6]} 8. Bh4 {[%clk 0:02:55.1]}
8... Qb6 {[%clk 0:02:51.3]} 9. a3 {[%clk 0:02:55.5]} 9... Be7 {[%clk 0:02:50.1]}
10. Bf2 {[%clk 0:02:54.4]} 10... Qc7 {[%clk 0:02:50.1]} 11. Bd3 {[%clk
0:02:49.3]} 11... O-O {[%clk 0:02:49.7]} 12. Qe2 {[%clk 0:02:46.1]} 12... b5
{[%clk 0:02:49.5]} 13. O-O-O {[%clk 0:02:43.8]} 13... Bb7 {[%clk 0:02:49.3]} 14.
g4 {[%clk 0:02:42.8]} 14... Nbd7 {[%clk 0:02:41.5]} 15. h4 {[%clk 0:02:34]}
15... Nc5 {[%clk 0:02:38.5]} 16. g5 {[%clk 0:02:24.6]} 16... Nxd3+ {[%clk
0:02:30.2]} 17. Rxd3 {[%clk 0:01:44.8]} 17... Nd7 {[%clk 0:01:24.3]} 18. gxh6
{[%clk 0:01:36.3]} 18... gxh6 {[%clk 0:01:23.9]} 19. Rg1+ {[%clk 0:01:29.6]}
19... Kh7 {[%clk 0:01:21.9]} 20. Rdg3 {[%clk 0:01:30]} 20... Rg8 {[%clk
0:01:20.8]} 21. Qh5 {[%clk 0:01:29.8]} 21... Nf6 {[%clk 0:00:49.7]} 22. Qxf7+
{[%clk 0:01:26.7]} 22... Kh8 {[%clk 0:00:49.7]} 23. Nxe6 {[%clk 0:01:14.6]}
23... Qd7 {[%clk 0:00:41.2]} 24. Rxg8+ {[%clk 0:01:07.4]} 24... Rxg8 {[%clk
0:00:40.2]} 25. Rxg8+ {[%clk 0:01:07.9]} 25... Nxg8 {[%clk 0:00:40.1]} 26. Bd4+
{[%clk 0:01:08.5]} 26... Bf6 {[%clk 0:00:38.9]} 27. Qxd7 {[%clk 0:01:01.1]}
27... Bxd4 {[%clk 0:00:38.8]} 28. Nxd4 {[%clk 0:01:01.2]} 28... Bxe4 {[%clk
0:00:37.3]} 29. Nxe4 {[%clk 0:01:00.6]} 29... Nf6 {[%clk 0:00:34.2]} 30. Nxf6
{[%clk 0:01:00.2]} 30... h5 {[%clk 0:00:32.8]} 31. Qh7# {[%clk 0:01:01.1]} 1-0

[Event "*** Titled Tuesday Blitz"]
[Site "Chess.com"]
[Date "2021.04.27"]
[Round "2"]
[White "ukchessbomber"]
[Black "Andrakhanova"]
[Result "1-0"]
[WhiteElo "2510"]
[BlackElo "2284"]
[TimeControl "180+1"]
[EndTime "10:16:55 PDT"]
[Termination "ukchessbomber won by resignation"]

1. Nf3 {[%clk 0:03:00.9]} 1... d5 {[%clk 0:02:54.2]} 2. g3 {[%clk 0:03:01.1]}
2... c6 {[%clk 0:02:53.5]} 3. Bg2 {[%clk 0:03:01.6]} 3... e6 {[%clk 0:02:51.6]}
4. O-O {[%clk 0:03:02]} 4... Nf6 {[%clk 0:02:38.1]} 5. b3 {[%clk 0:03:02]} 5...
Bd6 {[%clk 0:02:36.2]} 6. Bb2 {[%clk 0:03:02.4]} 6... Nbd7 {[%clk 0:02:36.2]} 7.
d3 {[%clk 0:03:01.4]} 7... O-O {[%clk 0:02:36]} 8. Nbd2 {[%clk 0:03:02.3]} 8...
Qc7 {[%clk 0:02:35.3]} 9. e4 {[%clk 0:03:01.8]} 9... b6 {[%clk 0:02:33.7]} 10.
Re1 {[%clk 0:03:00.6]} 10... e5 {[%clk 0:02:28.4]} 11. exd5 {[%clk 0:02:58.7]}
11... cxd5 {[%clk 0:02:26.9]} 12. c4 {[%clk 0:02:59.2]} 12... Bb7 {[%clk
0:02:26]} 13. cxd5 {[%clk 0:02:58.7]} 13... Bxd5 {[%clk 0:02:26.9]} 14. Nc4
{[%clk 0:02:56.2]} 14... Rfe8 {[%clk 0:02:15.1]} 15. Rc1 {[%clk 0:02:47.1]}
15... Qb8 {[%clk 0:02:14.8]} 16. Ne3 {[%clk 0:02:34.5]} 16... Bb7 {[%clk
0:02:06.1]} 17. Nf5 {[%clk 0:02:23.1]} 17... Bc5 {[%clk 0:01:48.2]} 18. Nxe5
{[%clk 0:02:17.8]} 18... Bxg2 {[%clk 0:01:44.7]} 19. Nxd7 {[%clk 0:02:16.3]}
19... Nxd7 {[%clk 0:01:45.6]} 20. Kxg2 {[%clk 0:02:14.9]} 20... Qb7+ {[%clk
0:01:36.1]} 21. Qf3 {[%clk 0:02:13.3]} 21... Qxf3+ {[%clk 0:01:35.9]} 22. Kxf3
{[%clk 0:02:14.2]} 22... f6 {[%clk 0:01:36.7]} 23. d4 {[%clk 0:02:10.9]} 23...
Bb4 {[%clk 0:01:34.7]} 24. Rxe8+ {[%clk 0:02:10.5]} 24... Rxe8 {[%clk
0:01:35.6]} 25. Rc7 {[%clk 0:02:10.3]} 25... Rd8 {[%clk 0:01:32.4]} 26. a3
{[%clk 0:02:09]} 26... Bf8 {[%clk 0:01:29.9]} 27. Rxa7 {[%clk 0:02:05.5]} 27...
g6 {[%clk 0:01:30.1]} 28. Ne3 {[%clk 0:02:03.1]} 28... Nb8 {[%clk 0:01:28]} 29.
Ng4 {[%clk 0:01:53.3]} 29... Bg7 {[%clk 0:01:22.6]} 30. d5 {[%clk 0:01:52.1]}
30... Nd7 {[%clk 0:01:17.9]} 31. d6 {[%clk 0:01:47.1]} 31... h5 {[%clk
0:01:13.6]} 32. Ne3 {[%clk 0:01:42.9]} 32... b5 {[%clk 0:01:10.7]} 33. Nd5
{[%clk 0:01:31.1]} 33... Ne5+ {[%clk 0:01:04.6]} 34. Bxe5 {[%clk 0:01:29.3]}
34... fxe5 {[%clk 0:01:05.5]} 35. Ne7+ {[%clk 0:01:25]} 35... Kh7 {[%clk
0:01:03.7]} 36. d7 {[%clk 0:01:24.9]} 36... Bf6 {[%clk 0:00:59.4]} 37. Nc6
{[%clk 0:01:22.6]} 37... Rf8 {[%clk 0:00:59.4]} 38. d8=Q+ {[%clk 0:01:18.1]} 1-0

[Event "*** Titled Tuesday Blitz"]
[Site "Chess.com"]
[Date "2021.04.27"]
[Round "2"]
[White "fyall777"]
[Black "volunteers1998"]
[Result "0-1"]
[WhiteElo "2409"]
[BlackElo "2210"]
[TimeControl "180+1"]
[EndTime "10:16:57 PDT"]
[Termination "volunteers1998 won on time"]

1. d4 {[%clk 0:01:26]} 1... f5 {[%clk 0:02:58]} 2. c4 {[%clk 0:01:26.1]} 2... g6
{[%clk 0:02:55.9]} 3. Nc3 {[%clk 0:01:27]} 3... Nf6 {[%clk 0:02:53.5]} 4. h4
{[%clk 0:01:27.5]} 4... Bg7 {[%clk 0:02:51.2]} 5. h5 {[%clk 0:01:27.5]} 5...
Nxh5 {[%clk 0:02:48.6]} 6. Rxh5 {[%clk 0:01:27.5]} 6... gxh5 {[%clk 0:02:48]} 7.
e3 {[%clk 0:01:27.6]} 7... O-O {[%clk 0:02:42.6]} 8. Qxh5 {[%clk 0:01:27.4]}
8... Qe8 {[%clk 0:02:34.3]} 9. Qh4 {[%clk 0:01:24.8]} 9... d6 {[%clk 0:02:31.6]}
10. Nd5 {[%clk 0:01:23.6]} 10... Na6 {[%clk 0:02:27.7]} 11. Nxe7+ {[%clk
0:01:21.8]} 11... Kh8 {[%clk 0:02:23.9]} 12. Nxc8 {[%clk 0:01:17.2]} 12... Rxc8
{[%clk 0:02:15.2]} 13. Bd2 {[%clk 0:01:17.4]} 13... c5 {[%clk 0:02:11.8]} 14.
Nf3 {[%clk 0:01:10.9]} 14... cxd4 {[%clk 0:02:07]} 15. Nxd4 {[%clk 0:01:10.9]}
15... Nc5 {[%clk 0:02:02.9]} 16. O-O-O {[%clk 0:01:09.5]} 16... Qa4 {[%clk
0:01:55.2]} 17. Be2 {[%clk 0:00:53.4]} 17... Qxa2 {[%clk 0:01:50.6]} 18. Rh1
{[%clk 0:00:53.1]} 18... h6 {[%clk 0:01:45.1]} 19. e4 {[%clk 0:00:52.9]} 19...
Na4 {[%clk 0:01:29.4]} 20. b3 {[%clk 0:00:24.3]} 20... Qb2+ {[%clk 0:01:18.6]}
21. Kd1 {[%clk 0:00:24.1]} 21... Qb1+ {[%clk 0:01:15.4]} 22. Bc1 {[%clk
0:00:20.2]} 22... Nc3+ {[%clk 0:01:12]} 23. Ke1 {[%clk 0:00:21.1]} 23... Qxc1+
{[%clk 0:01:09.3]} 0-1

[Event "*** Titled Tuesday Blitz"]
[Site "Chess.com"]
[Date "2021.04.27"]
[Round "2"]
[White "Diaschess88"]
[Black "barbara25"]
[Result "1-0"]
[WhiteElo "2549"]
[BlackElo "2287"]
[TimeControl "180+1"]
[EndTime "10:16:59 PDT"]
[Termination "Diaschess88 won by resignation"]

1. d4 {[%clk 0:03:00.9]} 1... d5 {[%clk 0:02:59.1]} 2. c4 {[%clk 0:03:01.1]}
2... c6 {[%clk 0:02:58.6]} 3. Nf3 {[%clk 0:03:00.6]} 3... Nf6 {[%clk 0:02:58.3]}
4. Nc3 {[%clk 0:03:01]} 4... e6 {[%clk 0:02:58.4]} 5. Bg5 {[%clk 0:03:01.5]}
5... Be7 {[%clk 0:02:58.1]} 6. e3 {[%clk 0:03:01.8]} 6... O-O {[%clk 0:02:58.1]}
7. Rc1 {[%clk 0:03:02.3]} 7... Nbd7 {[%clk 0:02:58.3]} 8. a3 {[%clk 0:03:02.5]}
8... b6 {[%clk 0:02:58.6]} 9. Bd3 {[%clk 0:02:57.7]} 9... Bb7 {[%clk 0:02:58.8]}
10. O-O {[%clk 0:02:52.9]} 10... Rc8 {[%clk 0:02:58.4]} 11. Qe2 {[%clk
0:02:52.2]} 11... c5 {[%clk 0:02:57.2]} 12. cxd5 {[%clk 0:02:51.8]} 12... exd5
{[%clk 0:02:56.9]} 13. Ba6 {[%clk 0:02:51.7]} 13... Qc7 {[%clk 0:02:50.1]} 14.
Rfd1 {[%clk 0:02:47.9]} 14... Bxa6 {[%clk 0:02:47.6]} 15. Qxa6 {[%clk
0:02:48.8]} 15... Nb8 {[%clk 0:02:46.4]} 16. Qa4 {[%clk 0:02:45.9]} 16... Rfd8
{[%clk 0:02:41.4]} 17. dxc5 {[%clk 0:02:39.5]} 17... bxc5 {[%clk 0:02:40.4]} 18.
Bxf6 {[%clk 0:02:39.3]} 18... Bxf6 {[%clk 0:02:39.6]} 19. Nxd5 {[%clk
0:02:39.6]} 19... Qd6 {[%clk 0:02:28.8]} 20. Qxa7 {[%clk 0:02:32.9]} 20... Qe6
{[%clk 0:01:54.6]} 21. Nxf6+ {[%clk 0:02:27.7]} 21... Qxf6 {[%clk 0:01:54.5]}
22. Rxd8+ {[%clk 0:02:26.9]} 22... Rxd8 {[%clk 0:01:53.3]} 23. b4 {[%clk
0:02:17.9]} 23... cxb4 {[%clk 0:01:49.5]} 24. axb4 {[%clk 0:02:17.7]} 24... h6
{[%clk 0:01:44.6]} 25. h3 {[%clk 0:02:17.2]} 25... Qb2 {[%clk 0:01:44]} 26. Rc7
{[%clk 0:02:09.1]} 26... Rf8 {[%clk 0:01:36]} 27. Qd4 {[%clk 0:02:03.9]} 27...
Qb1+ {[%clk 0:01:35.4]} 28. Kh2 {[%clk 0:02:02.7]} 28... Na6 {[%clk 0:01:30]}
29. Ra7 {[%clk 0:01:58.3]} 29... Nb8 {[%clk 0:01:29.4]} 30. Ra1 {[%clk
0:01:52.6]} 30... Qc2 {[%clk 0:01:27.3]} 31. b5 {[%clk 0:01:49.9]} 31... Qxf2
{[%clk 0:01:25.9]} 32. b6 {[%clk 0:01:43.6]} 32... Qe2 {[%clk 0:01:23.9]} 33.
Ra8 {[%clk 0:01:34.6]} 33... Qb5 {[%clk 0:01:20.6]} 34. Qd6 {[%clk 0:01:33.4]}
34... Nd7 {[%clk 0:01:13.9]} 35. Rxf8+ {[%clk 0:01:26.2]} 35... Nxf8 {[%clk
0:01:13.7]} 36. Qc7 {[%clk 0:01:17.8]} 36... Nd7 {[%clk 0:00:53.7]} 37. b7
{[%clk 0:01:12.9]} 37... Kh7 {[%clk 0:00:43.7]} 38. Qxd7 {[%clk 0:01:11.5]}
38... Qxd7 {[%clk 0:00:42.1]} 1-0

[Event "*** Titled Tuesday Blitz"]
[Site "Chess.com"]
[Date "2021.04.27"]
[Round "2"]
[White "lamomiablanca"]
[Black "HouseOfDurin"]
[Result "1-0"]
[WhiteElo "2396"]
[BlackElo "2115"]
[TimeControl "180+1"]
[EndTime "10:17:04 PDT"]
[Termination "lamomiablanca won by resignation"]

1. e4 {[%clk 0:03:00.9]} 1... c5 {[%clk 0:03:00.1]} 2. d3 {[%clk 0:02:59.9]}
2... Nc6 {[%clk 0:02:59.2]} 3. g3 {[%clk 0:02:58.1]} 3... g6 {[%clk 0:02:59.7]}
4. Bg2 {[%clk 0:02:57.1]} 4... Bg7 {[%clk 0:03:00.3]} 5. f4 {[%clk 0:02:55]}
5... e5 {[%clk 0:03:00.4]} 6. Nf3 {[%clk 0:02:50.1]} 6... d6 {[%clk 0:03:01]} 7.
O-O {[%clk 0:02:36.7]} 7... Nge7 {[%clk 0:03:01.5]} 8. Nc3 {[%clk 0:02:36.3]}
8... O-O {[%clk 0:03:00.7]} 9. f5 {[%clk 0:02:36.3]} 9... gxf5 {[%clk
0:02:59.8]} 10. Nh4 {[%clk 0:02:35.7]} 10... fxe4 {[%clk 0:02:45.5]} 11. dxe4
{[%clk 0:02:35.2]} 11... f5 {[%clk 0:02:24.1]} 12. exf5 {[%clk 0:02:19.4]} 12...
Nxf5 {[%clk 0:02:25]} 13. Qh5 {[%clk 0:02:11]} 13... Nxh4 {[%clk 0:02:19]} 14.
Bg5 {[%clk 0:01:54.8]} 14... Bf6 {[%clk 0:00:28.5]} 15. Bd5+ {[%clk 0:01:46.4]}
15... Kg7 {[%clk 0:00:09.1]} 16. Qh6+ {[%clk 0:01:33.6]} 16... Kh8 {[%clk
0:00:05.6]} 17. Rxf6 {[%clk 0:00:52.6]} 17... Rxf6 {[%clk 0:00:06.5]} 18. Bxf6+
{[%clk 0:00:51.8]} 1-0

[Event "*** Titled Tuesday Blitz"]
[Site "Chess.com"]
[Date "2021.04.27"]
[Round "2"]
[White "azikom"]
[Black "Chandradi"]
[Result "1-0"]
[WhiteElo "2657"]
[BlackElo "2372"]
[TimeControl "180+1"]
[EndTime "10:17:05 PDT"]
[Termination "azikom won by checkmate"]

1. d4 {[%clk 0:02:59.1]} 1... Nf6 {[%clk 0:02:59.7]} 2. Nf3 {[%clk 0:02:59.3]}
2... b6 {[%clk 0:02:59.2]} 3. c4 {[%clk 0:02:58.8]} 3... Bb7 {[%clk 0:02:57.9]}
4. Nc3 {[%clk 0:02:59.3]} 4... e6 {[%clk 0:02:57.8]} 5. Bg5 {[%clk 0:02:59.4]}
5... Be7 {[%clk 0:02:57.6]} 6. e3 {[%clk 0:02:59.1]} 6... Ne4 {[%clk 0:02:57.3]}
7. Bxe7 {[%clk 0:02:51.1]} 7... Qxe7 {[%clk 0:02:58.2]} 8. Qc2 {[%clk
0:02:51.5]} 8... Nxc3 {[%clk 0:02:57.3]} 9. Qxc3 {[%clk 0:02:51.8]} 9... d5
{[%clk 0:02:51.3]} 10. cxd5 {[%clk 0:02:50.6]} 10... exd5 {[%clk 0:02:51.3]} 11.
Bb5+ {[%clk 0:02:50.8]} 11... c6 {[%clk 0:02:51.1]} 12. Bd3 {[%clk 0:02:49.2]}
12... Nd7 {[%clk 0:02:47.9]} 13. O-O {[%clk 0:02:47.9]} 13... O-O {[%clk
0:02:45]} 14. Bf5 {[%clk 0:02:42.1]} 14... Rfe8 {[%clk 0:02:30.3]} 15. Rac1
{[%clk 0:02:38]} 15... f6 {[%clk 0:02:29.7]} 16. Rfd1 {[%clk 0:02:33.4]} 16...
Nf8 {[%clk 0:02:23.8]} 17. g3 {[%clk 0:02:29.3]} 17... Bc8 {[%clk 0:02:23.4]}
18. Bxc8 {[%clk 0:02:14.5]} 18... Raxc8 {[%clk 0:02:22.5]} 19. b4 {[%clk
0:02:14.8]} 19... Qe4 {[%clk 0:01:43.6]} 20. Nd2 {[%clk 0:02:13.2]} 20... Qg4
{[%clk 0:01:43.5]} 21. Qd3 {[%clk 0:02:04.6]} 21... Ne6 {[%clk 0:01:24.9]} 22.
b5 {[%clk 0:01:45]} 22... c5 {[%clk 0:01:22.4]} 23. dxc5 {[%clk 0:01:44.5]}
23... Rxc5 {[%clk 0:01:23.3]} 24. Nb3 {[%clk 0:01:43.7]} 24... Rxc1 {[%clk
0:01:13.1]} 25. Rxc1 {[%clk 0:01:41.7]} 25... Rd8 {[%clk 0:01:00.8]} 26. Qd1
{[%clk 0:01:26.7]} 26... Qb4 {[%clk 0:00:52.8]} 27. Rc6 {[%clk 0:01:16]} 27...
Rd6 {[%clk 0:00:20.2]} 28. Rc8+ {[%clk 0:01:12.2]} 28... Kf7 {[%clk 0:00:20.1]}
29. Qh5+ {[%clk 0:01:10.4]} 29... Ke7 {[%clk 0:00:18.3]} 30. Qe8# {[%clk
0:01:08.6]} 1-0

[Event "*** Titled Tuesday Blitz"]
[Site "Chess.com"]
[Date "2021.04.27"]
[Round "2"]
[White "jefferyx"]
[Black "KeithArkell"]
[Result "1-0"]
[WhiteElo "2990"]
[BlackElo "2606"]
[TimeControl "180+1"]
[EndTime "10:17:13 PDT"]
[Termination "jefferyx won by resignation"]

1. d4 {[%clk 0:03:00.9]} 1... e6 {[%clk 0:02:59.6]} 2. e4 {[%clk 0:02:57]} 2...
d5 {[%clk 0:02:58.3]} 3. Nc3 {[%clk 0:02:57.9]} 3... dxe4 {[%clk 0:02:58]} 4.
Nxe4 {[%clk 0:02:58.8]} 4... Bd7 {[%clk 0:02:58.5]} 5. Nf3 {[%clk 0:02:53.6]}
5... Bc6 {[%clk 0:02:58.5]} 6. Bd3 {[%clk 0:02:54]} 6... Nd7 {[%clk 0:02:58.5]}
7. c4 {[%clk 0:02:54.5]} 7... Ngf6 {[%clk 0:02:57]} 8. Nc3 {[%clk 0:02:54.8]}
8... Be7 {[%clk 0:02:49.7]} 9. O-O {[%clk 0:02:50.6]} 9... Bxf3 {[%clk
0:02:49.6]} 10. Qxf3 {[%clk 0:02:44.7]} 10... c6 {[%clk 0:02:49.8]} 11. Bf4
{[%clk 0:02:39.7]} 11... O-O {[%clk 0:02:46.5]} 12. Rad1 {[%clk 0:02:32.5]}
12... Re8 {[%clk 0:02:33]} 13. Rfe1 {[%clk 0:02:29.4]} 13... Qb6 {[%clk
0:02:26.2]} 14. b3 {[%clk 0:02:18.5]} 14... Bf8 {[%clk 0:02:12.5]} 15. g4 {[%clk
0:02:16.4]} 15... g6 {[%clk 0:02:08.1]} 16. h4 {[%clk 0:02:14.5]} 16... Bg7
{[%clk 0:01:52.4]} 17. h5 {[%clk 0:02:11.7]} 17... Qa5 {[%clk 0:01:45.1]} 18.
Bd2 {[%clk 0:01:49.8]} 18... Qc7 {[%clk 0:01:08.9]} 19. Bb1 {[%clk 0:01:47.2]}
19... a6 {[%clk 0:01:04.8]} 20. Kg2 {[%clk 0:01:39.5]} 20... Rad8 {[%clk
0:01:02.6]} 21. Bg5 {[%clk 0:01:35.1]} 21... Rc8 {[%clk 0:00:53.2]} 22. hxg6
{[%clk 0:01:27.6]} 22... hxg6 {[%clk 0:00:53.8]} 23. Rh1 {[%clk 0:01:27.6]}
23... c5 {[%clk 0:00:48.3]} 24. Qh3 {[%clk 0:00:54.5]} 24... cxd4 {[%clk
0:00:45.7]} 25. Bh6 {[%clk 0:00:47.5]} 25... Bf8 {[%clk 0:00:20.5]} 26. Bf4
{[%clk 0:00:45.1]} 1-0

[Event "*** Titled Tuesday Blitz"]
[Site "Chess.com"]
[Date "2021.04.27"]
[Round "2"]
[White "MeekinsKris"]
[Black "LileKoridze"]
[Result "1-0"]
[WhiteElo "2212"]
[BlackElo "2409"]
[TimeControl "180+1"]
[EndTime "10:17:13 PDT"]
[Termination "MeekinsKris won by resignation"]

1. e4 {[%clk 0:03:00.7]} 1... c5 {[%clk 0:02:58.8]} 2. d4 {[%clk 0:03:00.5]}
2... cxd4 {[%clk 0:02:59]} 3. c3 {[%clk 0:03:00.7]} 3... Nf6 {[%clk 0:02:59.1]}
4. e5 {[%clk 0:03:00.6]} 4... Nd5 {[%clk 0:02:59.7]} 5. Qxd4 {[%clk 0:03:00.6]}
5... e6 {[%clk 0:02:59.4]} 6. Nf3 {[%clk 0:03:00.2]} 6... Nc6 {[%clk 0:02:59.9]}
7. Qe4 {[%clk 0:03:00.4]} 7... f5 {[%clk 0:02:59.3]} 8. Qe2 {[%clk 0:03:00.7]}
8... Be7 {[%clk 0:02:58.9]} 9. g3 {[%clk 0:03:00.3]} 9... O-O {[%clk 0:02:57.3]}
10. Bg2 {[%clk 0:03:00.2]} 10... Qc7 {[%clk 0:02:55.2]} 11. c4 {[%clk
0:02:59.5]} 11... Nb6 {[%clk 0:02:54.2]} 12. O-O {[%clk 0:02:57.8]} 12... d6
{[%clk 0:02:46.6]} 13. exd6 {[%clk 0:02:55]} 13... Bxd6 {[%clk 0:02:47.5]} 14.
Nc3 {[%clk 0:02:53.6]} 14... e5 {[%clk 0:02:42.3]} 15. Rd1 {[%clk 0:02:49.1]}
15... a6 {[%clk 0:02:42.3]} 16. Be3 {[%clk 0:02:31.6]} 16... e4 {[%clk
0:02:29.5]} 17. Bxb6 {[%clk 0:01:20.4]} 17... exf3 {[%clk 0:02:12.3]} 18. Qxf3
{[%clk 0:01:14.1]} 18... Qxb6 {[%clk 0:02:08.1]} 19. Rxd6 {[%clk 0:01:07.2]}
19... Qxb2 {[%clk 0:02:07.4]} 20. Rad1 {[%clk 0:01:01.9]} 20... Qb4 {[%clk
0:01:50.6]} 21. Ne2 {[%clk 0:00:37.3]} 21... Qxc4 {[%clk 0:01:42.9]} 22. Nf4
{[%clk 0:00:33.7]} 22... Kh8 {[%clk 0:01:38.6]} 23. Qh5 {[%clk 0:00:32]} 23...
Ne5 {[%clk 0:01:31.8]} 24. R6d5 {[%clk 0:00:27.8]} 24... Qc7 {[%clk 0:01:25.1]}
25. Rxe5 {[%clk 0:00:25.1]} 25... Qb6 {[%clk 0:01:10.3]} 26. Rde1 {[%clk
0:00:25.4]} 26... Bd7 {[%clk 0:01:08.8]} 27. Re7 {[%clk 0:00:25.5]} 27... Bb5
{[%clk 0:01:06.6]} 28. Qg5 {[%clk 0:00:25.2]} 28... g6 {[%clk 0:01:02.5]} 29.
Nd5 {[%clk 0:00:23.5]} 29... Qd6 {[%clk 0:01:00.3]} 30. Qh6 {[%clk 0:00:22.7]}
1-0

[Event "*** Titled Tuesday Blitz"]
[Site "Chess.com"]
[Date "2021.04.27"]
[Round "2"]
[White "Vanina1989"]
[Black "nss13"]
[Result "1-0"]
[WhiteElo "2803"]
[BlackElo "2551"]
[TimeControl "180+1"]
[EndTime "10:17:14 PDT"]
[Termination "Vanina1989 won by resignation"]

1. d4 {[%clk 0:03:00.9]} 1... d5 {[%clk 0:02:59.7]} 2. c4 {[%clk 0:03:00.9]}
2... c6 {[%clk 0:03:00.3]} 3. Nf3 {[%clk 0:03:00.7]} 3... Nf6 {[%clk 0:03:00.6]}
4. g3 {[%clk 0:02:59.4]} 4... Bf5 {[%clk 0:02:54.4]} 5. Bg2 {[%clk 0:02:59.2]}
5... e6 {[%clk 0:02:52.2]} 6. O-O {[%clk 0:02:59.3]} 6... Nbd7 {[%clk
0:02:51.1]} 7. b3 {[%clk 0:02:59.9]} 7... h6 {[%clk 0:02:51]} 8. Bb2 {[%clk
0:03:00.3]} 8... Bd6 {[%clk 0:02:48.8]} 9. Nbd2 {[%clk 0:03:00.4]} 9... Qe7
{[%clk 0:02:47.7]} 10. Ne5 {[%clk 0:03:00.7]} 10... Ba3 {[%clk 0:02:47.3]} 11.
Qc1 {[%clk 0:03:00.7]} 11... Bxb2 {[%clk 0:02:47.3]} 12. Qxb2 {[%clk 0:03:01]}
12... O-O {[%clk 0:02:47.1]} 13. Rac1 {[%clk 0:03:00.7]} 13... Bh7 {[%clk
0:02:45.6]} 14. Rfe1 {[%clk 0:03:00.5]} 14... Rfd8 {[%clk 0:02:41.3]} 15. Ndf3
{[%clk 0:02:48.8]} 15... Be4 {[%clk 0:02:31.5]} 16. Nxd7 {[%clk 0:02:48.1]}
16... Nxd7 {[%clk 0:02:30.2]} 17. Nd2 {[%clk 0:02:47.6]} 17... Bxg2 {[%clk
0:02:30]} 18. Kxg2 {[%clk 0:02:48.1]} 18... Nf6 {[%clk 0:02:27.1]} 19. e3 {[%clk
0:02:48.6]} 19... dxc4 {[%clk 0:02:12.5]} 20. Nxc4 {[%clk 0:02:48.2]} 20... c5
{[%clk 0:02:08]} 21. Qa3 {[%clk 0:02:39.9]} 21... b6 {[%clk 0:01:28.6]} 22. dxc5
{[%clk 0:02:38.1]} 22... Qxc5 {[%clk 0:01:21.7]} 23. Qxc5 {[%clk 0:02:37.5]}
23... bxc5 {[%clk 0:01:22.6]} 24. Rc2 {[%clk 0:02:36.8]} 24... Nd5 {[%clk
0:01:20.5]} 25. Ne5 {[%clk 0:02:27]} 25... Nb4 {[%clk 0:01:13.5]} 26. Rxc5
{[%clk 0:02:14]} 26... Nxa2 {[%clk 0:01:06.9]} 27. Rc7 {[%clk 0:02:12.9]} 27...
f6 {[%clk 0:00:56.7]} 28. Nc6 {[%clk 0:02:08.5]} 28... Rd2 {[%clk 0:00:57.1]}
29. Nd4 {[%clk 0:02:06.2]} 29... Re8 {[%clk 0:00:50.6]} 30. Nf3 {[%clk
0:02:05.3]} 30... Rb2 {[%clk 0:00:47.4]} 31. Rd1 {[%clk 0:02:05.2]} 31... Kh7
{[%clk 0:00:36.6]} 32. Rdd7 {[%clk 0:02:02.3]} 32... Rg8 {[%clk 0:00:35.6]} 33.
Nd4 {[%clk 0:02:02.2]} 33... Rd2 {[%clk 0:00:35.5]} 34. Rxa7 {[%clk 0:01:59.4]}
34... e5 {[%clk 0:00:29.1]} 35. Nf5 {[%clk 0:01:53.9]} 35... Rxd7 {[%clk
0:00:29.4]} 36. Rxd7 {[%clk 0:01:53.6]} 36... h5 {[%clk 0:00:28.1]} 37. h4
{[%clk 0:01:46.8]} 37... Kh8 {[%clk 0:00:24.3]} 38. Rb7 {[%clk 0:01:46.2]} 38...
g6 {[%clk 0:00:20.8]} 39. Nd6 {[%clk 0:01:46.2]} 39... Ra8 {[%clk 0:00:17.7]}
40. b4 {[%clk 0:01:45.1]} 40... Ra4 {[%clk 0:00:17]} 41. b5 {[%clk 0:01:44.9]}
41... Rb4 {[%clk 0:00:17.9]} 42. b6 {[%clk 0:01:45.2]} 42... Nc3 {[%clk
0:00:18.8]} 43. Rb8+ {[%clk 0:01:43.5]} 43... Kh7 {[%clk 0:00:17.8]} 44. b7
{[%clk 0:01:43.8]} 44... Na4 {[%clk 0:00:07.2]} 1-0